bitfinex/quotes_BTCUSD_20240721
["timestamp","ask_amount","ask_price","bid_price","bid_amount"]
[1721591743294,0.00838,67475.0,67474.0,1.39207389]
[1721591743501,0.00838,67475.0,67474.0,1.37907389]
[1721591743926,0.00838,67475.0,67474.0,1.39307389]
[1721591744359,0.00838,67475.0,67474.0,1.37907389]
[1721591744929,0.00838,67475.0,67474.0,1.39307389]
[1721591745125,0.00838,67475.0,67474.0,1.37907389]
[1721591745329,0.00838,67475.0,67474.0,1.36507389]
[1721591745530,0.00838,67475.0,67474.0,1.39307389]
[1721591745854,0.00838,67475.0,67474.0,1.52507389]
[1721591746012,0.00838,67475.0,67474.0,1.57507389]
[1721591746240,0.00838,67475.0,67474.0,1.67507389]
[1721591746409,0.00838,67475.0,67474.0,1.97148389]
[1721591746608,0.00838,67475.0,67474.0,2.12768389]
[1721591746813,0.00838,67475.0,67474.0,2.09968389]
[1721591747025,0.00838,67475.0,67474.0,2.22275403]
[1721591747230,0.00838,67475.0,67474.0,2.23675403]
[1721591747430,0.00838,67475.0,67474.0,2.18675403]
[1721591747640,0.00838,67475.0,67474.0,2.04968389]
[1721591748056,0.00838,67475.0,67474.0,2.09968389]
[1721591748470,0.00838,67475.0,67474.0,2.06368389]
[1721591748881,0.00838,67475.0,67474.0,2.07768389]
[1721591749090,0.00838,67475.0,67474.0,1.85748389]
[1721591749298,0.00838,67475.0,67474.0,1.46903498]
[1721591749507,0.00838,67475.0,67474.0,1.48303498]
[1721591749917,0.00838,67475.0,67474.0,1.47351674]
[1721591753871,0.00838,67475.0,67474.0,1.17710674]
[1721591753986,0.00838,67475.0,67474.0,1.02980674]
[1721591754195,0.00838,67475.0,67474.0,0.0344]
[1721591754452,0.08608,67475.0,67474.0,0.0344]
[1721591755527,0.08608,67475.0,67474.0,0.0204]
[1721591755727,0.08608,67475.0,67474.0,0.0344]
[1721591755955,0.00838,67475.0,67474.0,0.36958234]
[1721591756166,0.00838,67475.0,67474.0,0.32298674]
[1721591756387,0.00838,67475.0,67474.0,0.33698674]
[1721591757306,0.15128,67475.0,67474.0,0.0344]
[1721591757745,0.28545092,67475.0,67474.0,0.0344]
[1721591757952,0.32225304,67475.0,67474.0,0.0344]
[1721591758160,0.32224724,67475.0,67474.0,0.028]
[1721591758366,0.211274,67475.0,67474.0,0.028]
[1721591758572,0.36744885,67475.0,67474.0,0.028]
[1721591758820,0.211274,67475.0,67474.0,0.028]
[1721591759023,0.211274,67475.0,67474.0,0.014]
[1721591759173,0.211274,67475.0,67470.0,0.000924]
[1721591759379,0.11095705,67471.0,67470.0,0.000924]
[1721591759595,0.13414893,67471.0,67470.0,0.000924]
[1721591760228,0.02319188,67471.0,67470.0,0.000924]
[1721591760430,0.13414575,67471.0,67470.0,0.000924]
[1721591760773,0.20257492,67471.0,67470.0,0.010924]
[1721591760975,0.20250595,67471.0,67470.0,0.010924]
[1721591761956,0.20250595,67471.0,67470.0,0.004924]
[1721591762347,0.20250595,67471.0,67470.0,0.005924]
[1721591762759,0.27699765,67471.0,67470.0,0.008924]
[1721591762960,0.16609188,67471.0,67470.0,0.008924]
[1721591763208,0.1429,67471.0,67470.0,0.008924]
[1721591763410,0.23162322,67471.0,67470.0,0.008924]
[1721591763919,0.20220252,67471.0,67470.0,0.008924]
[1721591764467,0.27697228,67471.0,67470.0,0.008924]
[1721591764657,0.20214393,67471.0,67470.0,0.008924]
[1721591764858,0.64677793,67471.0,67470.0,0.008924]
[1721591765123,0.54605493,67471.0,67470.0,0.008924]
[1721591765523,1.27193576,67471.0,67470.0,0.008924]
[1721591765794,0.97540909,67471.0,67470.0,0.008924]
[1721591765988,0.97540909,67471.0,67452.0,0.000924]
[1721591765989,0.0272,67459.0,67452.0,0.000924]
[1721591766221,0.2392243,67453.0,67452.0,0.000924]
[1721591766444,0.25903979,67453.0,67452.0,0.000924]
[1721591766680,0.40729079,67453.0,67452.0,0.000924]
[1721591766910,0.08633979,67453.0,67452.0,0.000924]
[1721591767170,0.09368362,67453.0,67452.0,0.000924]
[1721591767391,0.1727,67465.0,67452.0,0.000924]
[1721591767392,0.06648362,67454.0,67452.0,0.000924]
[1721591767618,0.04432286,67454.0,67452.0,0.000924]
[1721591767837,0.04432286,67455.0,67452.0,0.000924]
[1721591768039,0.04432286,67454.0,67452.0,0.000924]
[1721591768166,0.04432286,67455.0,67454.0,0.0064]
[1721591768366,0.04432286,67455.0,67453.0,0.07717479]
[1721591768367,0.04432286,67460.0,67457.0,0.0064]
[1721591768574,0.04432286,67460.0,67459.0,0.0064]
[1721591768831,0.04432286,67460.0,67458.0,0.0064]
[1721591769059,0.04432286,67460.0,67453.0,0.0014]
[1721591769060,0.06648362,67460.0,67453.0,0.0014]
[1721591769265,0.04429761,67458.0,67457.0,0.0014]
[1721591769522,0.04429761,67460.0,67457.0,0.0014]
[1721591769699,0.04429761,67460.0,67452.0,0.000924]
[1721591769700,0.04429761,67461.0,67459.0,0.0014]
[1721591769900,0.0075928,67460.0,67459.0,0.0014]
[1721591770102,0.0025928,67461.0,67459.0,0.0014]
[1721591770519,0.0025928,67461.0,67460.0,0.22680979]
[1721591770725,0.0025928,67462.0,67461.0,0.0014]
[1721591770862,0.15254955,67470.0,67464.0,0.0014]
[1721591770863,0.0025928,67465.0,67464.0,0.0014]
[1721591771252,0.0025928,67468.0,67465.0,0.0014]
[1721591771609,0.0025928,67468.0,67467.0,0.37501579]
[1721591771833,0.05265145,67475.0,67473.0,0.0014]
[1721591772001,0.00838,67475.0,67473.0,0.0014]
[1721591772204,0.00838,67475.0,67461.0,0.45084474]
[1721591772205,0.0025928,67474.0,67467.0,0.148219]
[1721591772480,0.0025928,67474.0,67473.0,0.148207]
[1721591772681,0.00838,67475.0,67469.0,0.148214]
[1721591772873,0.00838,67475.0,67469.0,0.29643]
[1721591773105,0.00838,67475.0,67474.0,0.444615]
[1721591773106,0.01938,67475.0,67474.0,0.444615]
[1721591773496,0.01938,67475.0,67474.0,0.148205]
[1721591773667,0.01938,67475.0,67473.0,0.001]
[1721591773868,0.01938,67475.0,67473.0,0.149207]
[1721591774665,0.00838,67475.0,67473.0,0.148207]
[1721591774841,0.00838,67475.0,67474.0,0.148205]
[1721591775277,0.00838,67475.0,67473.0,0.001]
[1721591775475,0.00838,67475.0,67470.0,0.30259374]
[1721591775881,0.00838,67475.0,67472.0,0.148208]
[1721591776639,0.00838,67475.0,67467.0,0.592877]
[1721591776640,0.0025928,67474.0,67467.0,0.296439]
[1721591776827,0.0025928,67474.0,67470.0,0.148213]
[1721591776978,0.00838,67475.0,67470.0,0.148213]
[1721591777413,0.00838,67475.0,67468.0,0.30259874]
[1721591777615,0.0025928,67474.0,67470.0,0.000924]
[1721591778036,0.0025928,67474.0,67473.0,0.955442]
[1721591778407,0.00838,67475.0,67474.0,0.741025]
[1721591778617,0.00838,67475.0,67474.0,1.19181674]
[1721591779740,0.00838,67475.0,67474.0,1.35101674]
[1721591779912,0.00838,67475.0,67474.0,1.36501674]
[1721591780119,0.00838,67475.0,67474.0,1.35101674]
[1721591781305,0.00838,67475.0,67474.0,1.33701674]
[1721591781504,0.00838,67475.0,67474.0,1.35101674]
[1721591781802,0.00838,67475.0,67474.0,1.36501674]
[1721591782005,0.00838,67475.0,67474.0,1.47361081]
[1721591782181,0.00838,67475.0,67474.0,1.48761081]
[1721591782586,0.00838,67475.0,67474.0,1.50161081]
[1721591784404,0.00838,67475.0,67474.0,1.36501674]
[1721591785029,0.00838,67475.0,67474.0,1.35101674]
[1721591785230,0.00838,67475.0,67474.0,1.36501674]
[1721591785809,0.00838,67475.0,67474.0,1.35101674]
[1721591786219,0.00838,67475.0,67474.0,1.36501674]
[1721591786415,0.00838,67475.0,67474.0,1.50161081]
[1721591786738,0.00838,67475.0,67474.0,1.47361081]
[1721591787100,0.00838,67475.0,67474.0,1.48761081]
[1721591788111,0.00838,67475.0,67474.0,1.53761081]
[1721591788338,0.00838,67475.0,67474.0,1.52361081]
[1721591788830,0.00838,67475.0,67474.0,2.17072081]
[1721591789261,0.00838,67475.0,67474.0,2.15672081]
[1721591789663,0.00838,67475.0,67474.0,2.17072081]
[1721591790084,0.00838,67475.0,67474.0,1.43701674]
[1721591790511,0.00838,67475.0,67474.0,1.46501674]
[1721591790688,0.00838,67475.0,67474.0,1.45101674]
[1721591791026,0.00838,67475.0,67474.0,1.46501674]
[1721591791234,0.00838,67475.0,67474.0,1.45101674]
[1721591791615,0.00838,67475.0,67474.0,1.43701674]
[1721591791794,0.00838,67475.0,67474.0,1.58081081]
[1721591792020,0.00838,67475.0,67474.0,1.59481081]
[1721591792646,0.00838,67475.0,67474.0,1.58081081]
[1721591792850,0.00838,67475.0,67474.0,1.88151081]
[1721591793061,0.00838,67475.0,67474.0,1.86751081]
[1721591793275,0.00838,67475.0,67474.0,2.14992081]
[1721591793489,0.00838,67475.0,67474.0,2.16392081]
[1721591793690,0.00838,67475.0,67474.0,2.17792081]
[1721591794114,0.00838,67475.0,67474.0,2.19192081]
[1721591794320,0.00838,67475.0,67474.0,2.16392081]
[1721591794526,0.00838,67475.0,67474.0,2.17792081]
[1721591794945,0.00838,67475.0,67474.0,2.33412081]
[1721591795498,0.00838,67475.0,67474.0,2.32012081]
[1721591795702,0.00838,67475.0,67474.0,1.98771081]
[1721591795914,0.00838,67475.0,67474.0,1.97371081]
[1721591796113,0.00838,67475.0,67474.0,1.98771081]
[1721591796275,0.00838,67475.0,67474.0,2.27012081]
[1721591796473,0.00838,67475.0,67474.0,2.25612081]
[1721591796697,0.00838,67475.0,67474.0,2.28412081]
[1721591797248,0.00838,67475.0,67474.0,2.33412081]
[1721591797434,0.00838,67475.0,67474.0,2.28412081]
[1721591797654,0.00838,67475.0,67474.0,2.39318063]
[1721591797957,0.00838,67475.0,67474.0,2.11077063]
[1721591798241,0.1,67484.0,67483.0,0.148185]
[1721591798451,0.1,67484.0,67483.0,1.19167674]
[1721591799387,0.1,67484.0,67483.0,0.89530674]
[1721591799595,0.1,67484.0,67483.0,0.92330674]
[1721591799848,0.1,67484.0,67483.0,0.90930674]
[1721591800049,0.1,67484.0,67483.0,0.61293674]
[1721591800324,0.1,67484.0,67483.0,0.62693674]
[1721591800562,0.1,67484.0,67483.0,0.92330674]
[1721591800775,0.1,67484.0,67483.0,0.90930674]
[1721591801173,0.1,67484.0,67483.0,0.92330674]
[1721591801349,0.1,67484.0,67483.0,1.04527481]
[1721591801649,0.1,67484.0,67483.0,1.03127481]
[1721591801973,0.1,67484.0,67483.0,0.92330674]
[1721591802338,0.1,67484.0,67483.0,0.90930674]
[1721591802741,0.1,67484.0,67483.0,0.92330674]
[1721591802962,0.1,67484.0,67483.0,0.90930674]
[1721591803492,0.1,67484.0,67483.0,1.05883643]
[1721591804026,0.1,67484.0,67483.0,1.03083643]
[1721591804223,0.1,67484.0,67483.0,1.04483643]
[1721591804430,0.1,67484.0,67483.0,1.48690643]
[1721591804642,0.1,67484.0,67483.0,1.47290643]
[1721591804856,0.1,67484.0,67483.0,1.48690643]
[1721591805039,0.1,67484.0,67483.0,1.75996708]
[1721591805240,0.1,67484.0,67483.0,1.70996708]
[1721591805439,0.1,67484.0,67483.0,1.69596708]
[1721591805642,0.1,67484.0,67483.0,1.75996708]
[1721591805891,0.1,67484.0,67483.0,1.80996708]
[1721591806090,0.1,67484.0,67483.0,1.68196708]
[1721591806497,0.1,67484.0,67483.0,1.75996708]
[1721591806761,0.1,67484.0,67483.0,1.69596708]
[1721591806935,0.1,67484.0,67483.0,1.74596708]
[1721591807138,0.1,67484.0,67483.0,1.70996708]
[1721591807358,0.1,67484.0,67483.0,1.69596708]
[1721591807568,0.1,67484.0,67483.0,1.74596708]
[1721591807717,0.1,67484.0,67483.0,1.73196708]
[1721591807922,0.1,67484.0,67483.0,1.74596708]
[1721591808165,0.1,67484.0,67483.0,1.74596248]
[1721591808368,0.1,67484.0,67483.0,1.73196248]
[1721591808571,0.1,67484.0,67483.0,1.73196142]
[1721591808892,0.1,67484.0,67483.0,1.75996142]
[1721591809384,0.10084,67484.0,67483.0,1.77396142]
[1721591809791,0.10084,67484.0,67483.0,1.73196142]
[1721591810008,0.10084,67484.0,67483.0,1.74596142]
[1721591810659,0.10084,67484.0,67483.0,1.75996142]
[1721591810866,0.10084,67484.0,67483.0,1.44273173]
[1721591811204,0.10084,67484.0,67483.0,1.33367674]
[1721591811376,0.10084,67484.0,67483.0,1.4567364]
[1721591811607,0.10084,67484.0,67483.0,1.4427364]
[1721591811828,0.10084,67484.0,67483.0,1.4147364]
[1721591812053,0.10084,67484.0,67483.0,1.4287364]
[1721591812491,0.10084,67484.0,67483.0,1.4427364]
[1721591812943,0.10084,67484.0,67483.0,1.4287364]
[1721591814070,0.10084,67484.0,67483.0,0.4396264]
[1721591814297,0.10084,67484.0,67483.0,0.31656674]
[1721591814477,0.10084,67484.0,67483.0,0.61293674]
[1721591814887,0.10084,67484.0,67483.0,0.62693674]
[1721591815107,0.10084,67484.0,67483.0,0.92330674]
[1721591815302,0.10084,67484.0,67483.0,0.90930674]
[1721591815600,0.10084,67484.0,67483.0,1.04483773]
[1721591815832,0.10084,67484.0,67483.0,1.65937835]
[1721591816638,0.10084,67484.0,67483.0,2.10574835]
[1721591816750,0.10084,67484.0,67483.0,1.80937835]
[1721591817219,0.10084,67484.0,67483.0,1.68630773]
[1721591817500,0.10084,67484.0,67483.0,1.80935853]
[1721591817724,0.10084,67484.0,67483.0,1.75935806]
[1721591817971,0.10084,67484.0,67483.0,1.74535806]
[1721591818234,0.10084,67484.0,67483.0,1.80935806]
[1721591818446,0.10084,67484.0,67483.0,2.10572806]
[1721591818675,0.10084,67484.0,67483.0,2.09172806]
[1721591819137,0.10084,67484.0,67483.0,2.10572806]
[1721591819601,0.10084,67484.0,67483.0,2.07772806]
[1721591819842,0.10084,67484.0,67483.0,2.13877773]
[1721591820105,1e-06,67485.0,67484.0,0.1]
[1721591820340,0.00838,67489.0,67486.0,0.494535]
[1721591820569,0.00838,67489.0,67486.0,1.93217297]
[1721591820801,0.00838,67489.0,67486.0,2.13046861]
[1721591821028,0.00838,67489.0,67486.0,2.42682561]
[1721591821731,0.00838,67489.0,67486.0,2.37682561]
[1721591821958,0.00838,67489.0,67486.0,2.42682561]
[1721591822755,0.00838,67489.0,67486.0,2.44082074]
[1721591822997,0.00838,67489.0,67486.0,2.24872074]
[1721591823233,0.00338,67487.0,67486.0,2.41882074]
[1721591823465,0.00338,67487.0,67486.0,2.22072074]
[1721591823709,0.00338,67487.0,67486.0,2.29872074]
[1721591824206,0.00338,67487.0,67486.0,2.45482074]
[1721591824933,0.00338,67487.0,67486.0,2.44082074]
[1721591825440,0.00338,67487.0,67486.0,2.29872074]
[1721591825668,0.00338,67487.0,67486.0,2.14768338]
[1721591825938,0.00338,67487.0,67486.0,2.29401134]
[1721591826191,0.00338,67487.0,67486.0,1.72496156]
[1721591826427,0.00338,67487.0,67486.0,1.80296156]
[1721591826916,0.00338,67487.0,67486.0,1.72496156]
[1721591827567,0.00338,67487.0,67486.0,1.76096156]
[1721591827973,0.00338,67487.0,67486.0,1.71096156]
[1721591828174,0.00338,67487.0,67486.0,1.76096156]
[1721591828381,0.00338,67487.0,67486.0,1.63791839]
[1721591828531,0.00338,67487.0,67486.0,1.77496377]
[1721591828928,0.00338,67487.0,67486.0,1.71096376]
[1721591829178,0.00338,67487.0,67486.0,1.60026376]
[1721591829625,0.00838,67495.0,67494.0,0.444483]
[1721591829833,0.00838,67495.0,67494.0,0.67603953]
[1721591830063,0.14918,67495.0,67494.0,0.67603953]
[1721591830904,0.14918,67495.0,67494.0,0.69003953]
[1721591831027,0.14918,67495.0,67494.0,0.24555653]
[1721591831230,0.14918,67495.0,67494.0,0.39371753]
[1721591831454,0.14918,67495.0,67494.0,0.75904368]
[1721591831674,0.14918,67495.0,67494.0,0.39371753]
[1721591831879,0.14918,67495.0,67494.0,0.70403953]
[1721591832080,0.14918,67495.0,67494.0,1.00036153]
[1721591832672,0.14918,67495.0,67494.0,0.70403953]
[1721591832899,0.14918,67495.0,67494.0,0.10517479]
[1721591833310,0.14918,67495.0,67494.0,0.60462587]
[1721591833573,0.14918,67495.0,67494.0,0.25333579]
[1721591833807,0.14918,67495.0,67494.0,0.10517479]
[1721591835117,0.14918,67495.0,67494.0,0.07717479]
[1721591835411,0.14918,67495.0,67494.0,0.09117479]
[1721591835651,0.14918,67495.0,67494.0,0.10517479]
[1721591835652,0.21576972,67495.0,67494.0,0.10517479]
[1721591835847,0.14918,67495.0,67494.0,0.10517479]
[1721591836377,0.21577116,67495.0,67494.0,0.10517479]
[1721591836578,0.21577435,67495.0,67494.0,0.10517479]
[1721591836959,0.23796631,67495.0,67494.0,0.10517479]
[1721591837794,0.14918,67495.0,67494.0,0.10517479]
[1721591838428,0.14918,67495.0,67494.0,0.13050937]
[1721591838629,0.23798022,67495.0,67494.0,0.10517479]
[1721591838842,0.14918,67495.0,67494.0,0.10517479]
[1721591839040,0.21578413,67495.0,67494.0,0.10517479]
[1721591839247,0.07498413,67495.0,67494.0,0.27866997]
[1721591839609,0.07498413,67495.0,67494.0,0.10517479]
[1721591839610,0.00838,67495.0,67494.0,0.10517479]
[1721591839763,0.05278188,67495.0,67494.0,0.10517479]
[1721591839964,0.00838,67495.0,67494.0,0.10517479]
[1721591840768,0.00838,67495.0,67494.0,0.028]
[1721591840769,0.24328022,67495.0,67494.0,0.028]
[1721591840971,0.15448,67495.0,67494.0,0.028]
[1721591841807,0.32582303,67495.0,67494.0,0.028]
[1721591842049,0.22147646,67495.0,67494.0,0.028]
[1721591842212,0.35468892,67495.0,67494.0,0.028]
[1721591843075,0.35468892,67495.0,67494.0,0.014]
[1721591843076,0.36963546,67495.0,67494.0,0.014]
[1721591843280,0.148162,67494.0,67485.0,0.000924]
[1721591843492,0.13321477,67491.0,67485.0,0.000924]
[1721591843667,0.18609646,67490.0,67485.0,0.000924]
[1721591843880,0.11097757,67486.0,67485.0,0.000924]
[1721591844080,0.02318403,67486.0,67485.0,0.000924]
[1721591844287,0.1421,67486.0,67485.0,0.000924]
[1721591844491,0.16528403,67486.0,67485.0,0.000924]
[1721591845571,0.25302656,67486.0,67485.0,0.009924]
[1721591845719,0.16528911,67486.0,67485.0,0.019924]
[1721591847104,0.1421,67486.0,67485.0,0.019924]
[1721591847699,0.1421,67486.0,67485.0,0.168103]
[1721591847700,0.04434648,67486.0,67485.0,0.168103]
[1721591847900,0.04434648,67487.0,67485.0,0.168103]
[1721591848130,0.04434648,67488.0,67486.0,0.148178]
[1721591848334,0.04434648,67488.0,67485.0,0.019924]
[1721591848543,0.04434648,67489.0,67485.0,0.019924]
[1721591848756,0.04434648,67489.0,67485.0,0.010924]
[1721591848757,0.04434648,67488.0,67485.0,0.010924]
[1721591848959,0.04434648,67487.0,67485.0,0.010924]
[1721591849165,0.04434648,67487.0,67485.0,0.008924]
[1721591849366,0.04434648,67487.0,67486.0,0.008]
[1721591849904,0.04434648,67488.0,67486.0,0.008]
[1721591850251,0.04433936,67488.0,67485.0,0.016924]
[1721591850542,0.04433936,67488.0,67485.0,0.008924]
[1721591850976,0.04433936,67488.0,67485.0,0.014924]
[1721591851191,0.0025928,67487.0,67485.0,0.014924]
[1721591851395,0.04433936,67488.0,67485.0,0.008924]
[1721591851598,0.04433936,67488.0,67486.0,0.009]
[1721591852010,0.04433936,67488.0,67485.0,0.007924]
[1721591852185,0.04433936,67488.0,67485.0,0.008924]
[1721591852832,0.04433936,67488.0,67486.0,0.008]
[1721591853283,0.04432927,67488.0,67486.0,0.008]
[1721591853689,0.04432724,67488.0,67486.0,0.008]
[1721591853917,0.04432724,67488.0,67486.0,0.06266568]
[1721591854122,0.04432724,67489.0,67486.0,0.06266568]
[1721591854877,0.04432724,67489.0,67486.0,0.05466568]
[1721591855074,0.04432724,67489.0,67486.0,0.06166568]
[1721591855275,0.04432724,67489.0,67487.0,0.02879475]
[1721591855526,0.04432724,67490.0,67487.0,0.02879475]
[1721591855901,0.04432724,67490.0,67486.0,0.007]
[1721591856118,0.04432724,67490.0,67486.0,0.013]
[1721591856334,0.04432724,67490.0,67486.0,0.0772]
[1721591856335,0.04432098,67490.0,67486.0,0.0772]
[1721591856544,0.04432098,67493.0,67490.0,0.148168]
[1721591856760,0.04432098,67494.0,67492.0,0.07717479]
[1721591856963,0.00838,67495.0,67492.0,0.07717479]
[1721591856964,0.00838,67495.0,67494.0,0.148161]
[1721591857162,0.00838,67495.0,67494.0,0.89518674]
[1721591857360,0.00838,67495.0,67494.0,0.96138674]
[1721591857564,0.00838,67495.0,67494.0,1.04148674]
[1721591857799,0.00838,67495.0,67494.0,1.17062289]
[1721591858604,0.00838,67495.0,67494.0,1.48094489]
[1721591859021,0.00838,67495.0,67494.0,1.49494489]
[1721591859227,0.00838,67495.0,67494.0,1.48094489]
[1721591859432,0.00838,67495.0,67494.0,1.46694489]
[1721591859641,0.00838,67495.0,67494.0,1.49494489]
[1721591860272,0.00838,67495.0,67494.0,1.50894489]
[1721591860883,0.00838,67495.0,67494.0,1.49494489]
[1721591861092,0.00838,67495.0,67494.0,1.50894489]
[1721591861685,0.00838,67495.0,67494.0,1.49494489]
[1721591862038,0.00838,67495.0,67494.0,1.46694489]
[1721591862442,0.00838,67495.0,67494.0,1.49494489]
[1721591862646,0.00838,67495.0,67494.0,1.48094489]
[1721591863044,0.00838,67495.0,67494.0,1.49494489]
[1721591863674,0.00838,67495.0,67494.0,1.48094489]
[1721591864106,0.00838,67495.0,67494.0,1.49494489]
[1721591864442,0.00838,67495.0,67494.0,1.06948674]
[1721591864849,0.00838,67495.0,67494.0,0.97538674]
[1721591865258,0.00838,67495.0,67494.0,0.98938674]
[1721591865607,0.00838,67495.0,67494.0,1.28570874]
[1721591865932,0.00838,67495.0,67494.0,0.96138674]
[1721591866135,0.00838,67495.0,67494.0,1.3701653]
[1721591866340,0.00838,67495.0,67494.0,1.3841653]
[1721591867558,0.00838,67495.0,67494.0,1.0878433]
[1721591867778,0.00838,67495.0,67494.0,1.1018433]
[1721591868234,0.00838,67495.0,67494.0,0.98938674]
[1721591868637,0.00838,67495.0,67494.0,0.97538674]
[1721591868789,0.00838,67495.0,67494.0,0.98938674]
[1721591869725,0.00838,67495.0,67494.0,1.36230874]
[1721591869885,0.00838,67495.0,67494.0,1.06598674]
[1721591870085,0.00838,67495.0,67494.0,1.36230874]
[1721591870302,0.00838,67495.0,67494.0,0.76966474]
[1721591870523,0.00838,67495.0,67494.0,1.06598674]
[1721591870949,0.00838,67495.0,67494.0,1.05198674]
[1721591871098,0.00838,67495.0,67494.0,1.06598674]
[1721591871584,0.00838,67495.0,67494.0,1.05198674]
[1721591872011,0.00838,67495.0,67494.0,1.06598674]
[1721591872422,0.00838,67495.0,67494.0,1.67990527]
[1721591872669,0.00838,67495.0,67494.0,1.97622727]
[1721591872909,0.00838,67495.0,67494.0,2.07622727]
[1721591873854,0.00838,67495.0,67494.0,2.06222727]
[1721591874076,0.00838,67495.0,67494.0,2.11222727]
[1721591874316,0.00838,67495.0,67494.0,2.07622727]
[1721591874783,0.00838,67495.0,67494.0,2.06222727]
[1721591875831,0.00838,67495.0,67494.0,1.60720527]
[1721591876063,0.00838,67495.0,67494.0,1.46230874]
[1721591876300,0.00838,67495.0,67494.0,1.44830874]
[1721591876542,0.00838,67495.0,67494.0,1.46230874]
[1721591877011,0.00838,67495.0,67494.0,1.47630874]
[1721591877259,0.00838,67495.0,67494.0,1.61665831]
[1721591877481,0.00838,67495.0,67494.0,1.63065831]
[1721591877932,0.00838,67495.0,67494.0,1.61665831]
[1721591878137,0.00838,67495.0,67494.0,1.63065831]
[1721591878347,0.00838,67495.0,67494.0,1.60265831]
[1721591878548,0.00838,67495.0,67494.0,1.61665831]
[1721591878751,0.00838,67495.0,67494.0,1.60265831]
[1721591878980,0.00838,67495.0,67494.0,1.61665831]
[1721591879197,0.00838,67495.0,67494.0,1.63065831]
[1721591879913,0.00838,67495.0,67494.0,1.60265831]
[1721591880372,0.00838,67495.0,67494.0,1.61665831]
[1721591881028,0.00838,67495.0,67494.0,1.60265831]
[1721591881482,0.00838,67495.0,67494.0,1.61665831]
[1721591882894,0.00838,67495.0,67494.0,1.91298031]
[1721591883808,0.00838,67495.0,67494.0,2.03601547]
[1721591884592,0.00838,67495.0,67494.0,1.5853439]
[1721591884829,0.00838,67495.0,67494.0,1.31950874]
[1721591885806,0.00838,67495.0,67494.0,1.58214995]
[1721591886056,0.00838,67495.0,67494.0,1.45910874]
[1721591886510,0.00838,67495.0,67494.0,1.58214979]
[1721591886759,0.00838,67495.0,67494.0,1.73649936]
[1721591887419,0.00815744,67495.0,67494.0,1.73649936]
[1721591888866,0.00815744,67495.0,67494.0,1.73649833]
[1721591889067,0.00815744,67495.0,67494.0,1.83649833]
[1721591889489,0.00815744,67495.0,67494.0,2.18339223]
[1721591890430,0.00815744,67495.0,67494.0,2.16939223]
[1721591890663,0.00815744,67495.0,67494.0,2.13339223]
[1721591890911,0.00815744,67495.0,67494.0,2.18339223]
[1721591891064,0.00815744,67495.0,67494.0,2.16939223]
[1721591891268,0.00815744,67495.0,67494.0,2.15539223]
[1721591891476,0.00815744,67495.0,67494.0,2.18339223]
[1721591891678,0.00815744,67495.0,67494.0,2.06035221]
[1721591891906,0.00815744,67495.0,67494.0,2.18338099]
[1721591892150,0.00815744,67495.0,67494.0,1.96035221]
[1721591892348,0.00815744,67495.0,67494.0,2.08280908]
[1721591893038,0.00815744,67495.0,67494.0,2.13280908]
[1721591893388,0.00815744,67495.0,67494.0,2.18338098]
[1721591894050,0.00815744,67495.0,67494.0,2.13338098]
[1721591894254,0.00815744,67495.0,67494.0,2.11938098]
[1721591894469,0.00815744,67495.0,67494.0,2.18338079]
[1721591894679,0.00815744,67495.0,67494.0,2.06035221]
[1721591894889,0.00815744,67495.0,67494.0,2.1193808]
[1721591895089,0.00815744,67495.0,67494.0,2.1333808]
[1721591895497,0.00815744,67495.0,67494.0,2.1693808]
[1721591895706,0.00815744,67495.0,67494.0,1.8090588]
[1721591895915,0.00815744,67495.0,67494.0,1.8230588]
[1721591896320,0.00815744,67495.0,67494.0,2.1193808]
[1721591896527,0.00815744,67495.0,67494.0,2.0688089]
[1721591896726,0.00815744,67495.0,67494.0,2.1188089]
[1721591896920,0.00838,67496.0,67494.0,2.1188089]
[1721591896921,0.05602825,67519.0,67514.0,0.148116]
[1721591897312,0.05602825,67519.0,67496.0,0.1]
[1721591897313,0.02317633,67518.0,67515.0,0.148114]
[1721591897717,0.02317633,67518.0,67503.0,0.07717479]
[1721591897917,0.08861013,67520.0,67510.0,0.148125]
[1721591897918,0.1389,67517.0,67510.0,0.148125]
[1721591898068,0.1389,67517.0,67511.0,0.002794]
[1721591898069,0.02317633,67516.0,67511.0,0.002794]
[1721591898270,0.02317633,67516.0,67508.0,0.29626]
[1721591898479,0.02317633,67516.0,67511.0,0.148123]
[1721591898735,0.02317633,67516.0,67515.0,0.014]
[1721591899074,0.02317633,67516.0,67515.0,0.026]
[1721591899557,0.02317633,67516.0,67515.0,0.0434123]
[1721591900581,0.02317633,67516.0,67515.0,0.0174123]
[1721591900783,0.02317633,67516.0,67515.0,0.0314123]
[1721591900983,0.02317633,67516.0,67515.0,0.0454123]
[1721591901209,0.02317633,67516.0,67515.0,0.0314123]
[1721591901619,0.2498541,67517.0,67515.0,0.0454123]
[1721591901849,0.2498541,67517.0,67516.0,0.18859621]
[1721591902052,0.27303059,67517.0,67516.0,0.18859621]
[1721591902720,0.16207649,67517.0,67516.0,0.18859621]
[1721591903057,0.16207649,67517.0,67516.0,0.148113]
[1721591903650,0.16207649,67517.0,67516.0,0.162113]
[1721591904057,0.02317649,67517.0,67516.0,0.458339]
[1721591904276,0.00084,67521.0,67516.0,0.014]
[1721591904480,0.04077451,67520.0,67519.0,0.148106]
[1721591904862,0.02317624,67520.0,67519.0,0.148106]
[1721591905243,0.02317624,67520.0,67517.0,0.44433]
[1721591905445,0.02317624,67520.0,67518.0,0.148108]
[1721591905654,0.00084,67519.0,67518.0,0.148108]
[1721591905873,0.02401624,67519.0,67518.0,0.148108]
[1721591906079,0.02401624,67519.0,67518.0,1.33559684]
[1721591906277,0.0674675,67519.0,67518.0,1.32959684]
[1721591906533,0.00084,67519.0,67518.0,1.32959684]
[1721591907985,0.00084,67519.0,67518.0,1.34359684]
[1721591908189,0.00084,67519.0,67518.0,1.35559684]
[1721591908391,0.00084,67519.0,67518.0,1.34159684]
[1721591908619,0.00084,67519.0,67518.0,1.32959684]
[1721591909229,0.00084,67519.0,67518.0,1.32939684]
[1721591909863,0.00084,67519.0,67518.0,1.34339684]
[1721591910076,0.00084,67519.0,67518.0,1.35739684]